[Event "Titled Tuesday Blitz July 27 2021"]
[White "Goncalves, Ivan Mesquita V"]
[Black "Amburgy, Ryan"]
[WhiteFideId "2114224"]
[BlackFideId "30924820"]
[WhiteElo "2299"]
[BlackElo "2066"]
[Result "1-0"]
[Round "10"]
[TimeControl "180+1"]
[Date "2021.07.27"]
[WhiteClock "0:00:09"]
[BlackClock "0:00:08"]

1. d4 {[%clk 0:02:55]}  Nf6 {[%clk 0:02:59]} 2. c4 {[%clk 0:02:56]}  e6 {[%clk 0:03:00]} 3. Nc3 {[%clk 0:02:55]}  Bb4 {[%clk 0:03:01]} 4. e3 {[%clk 0:02:55]}  b6 {[%clk 0:03:02]} 5. Ne2 {[%clk 0:02:54]}  Bb7 {[%clk 0:03:02]} 6. a3 {[%clk 0:02:55]}  Bd6 {[%clk 0:03:03]} 7. Ng3 {[%clk 0:02:54]}  h5 {[%clk 0:03:04]} 8. d5 {[%clk 0:02:44]}  Be5 {[%clk 0:02:57]} 9. Be2 {[%clk 0:02:38]}  Bxc3+ {[%clk 0:02:37]} 10. bxc3 {[%clk 0:02:39]}  h4 {[%clk 0:02:38]} 11. Nf1 {[%clk 0:02:13]}  exd5 {[%clk 0:02:24]} 12. cxd5 {[%clk 0:02:11]}  Bxd5 {[%clk 0:02:19]} 13. f3 {[%clk 0:02:08]}  d6 {[%clk 0:01:56]} 14. e4 {[%clk 0:02:08]}  Be6 {[%clk 0:01:57]} 15. Bg5 {[%clk 0:02:07]}  Nbd7 {[%clk 0:01:57]} 16. Qd2 {[%clk 0:01:59]}  Qe7 {[%clk 0:01:50]} 17. a4 {[%clk 0:01:58]}  a6 {[%clk 0:01:36]} 18. Ne3 {[%clk 0:01:54]}  Nc5 {[%clk 0:01:32]} 19. Qb2 {[%clk 0:01:35]}  h3 {[%clk 0:01:25]} 20. g3 {[%clk 0:01:33]}  O-O {[%clk 0:00:52]} 21. c4 {[%clk 0:01:26]}  Ncd7 {[%clk 0:00:52]} 22. O-O {[%clk 0:01:21]}  Qe8 {[%clk 0:00:44]} 23. Nd5 {[%clk 0:01:14]}  Bxd5 {[%clk 0:00:41]} 24. cxd5 {[%clk 0:01:12]}  Qe5 {[%clk 0:00:33]} 25. Qd2 {[%clk 0:01:07]}  Nc5 {[%clk 0:00:30]} 26. Bf4 {[%clk 0:00:50]}  Qe8 {[%clk 0:00:31]} 27. Qb2 {[%clk 0:00:43]}  Nfd7 {[%clk 0:00:30]} 28. a5 {[%clk 0:00:42]}  b5 {[%clk 0:00:30]} 29. Be3 {[%clk 0:00:41]}  f5 {[%clk 0:00:22]} 30. Bd4 {[%clk 0:00:41]}  Qe7 {[%clk 0:00:21]} 31. Rae1 {[%clk 0:00:38]}  fxe4 {[%clk 0:00:20]} 32. fxe4 {[%clk 0:00:39]}  Ne5 {[%clk 0:00:20]} 33. Qc3 {[%clk 0:00:28]}  Na4 {[%clk 0:00:12]} 34. Qe3 {[%clk 0:00:27]}  Rxf1+ {[%clk 0:00:11]} 35. Rxf1 {[%clk 0:00:27]}  Rf8 {[%clk 0:00:12]} 36. Rc1 {[%clk 0:00:28]}  Qd7 {[%clk 0:00:07]} 37. Kh1 {[%clk 0:00:26]}  Ng4 {[%clk 0:00:02]} 38. Qg5 {[%clk 0:00:18]}  Nf2+ {[%clk 0:00:03]} 39. Bxf2 {[%clk 0:00:18]}  Rxf2 {[%clk 0:00:04]} 40. Bg4 {[%clk 0:00:19]}  Qe8 {[%clk 0:00:02]} 41. Be6+ {[%clk 0:00:19]}  Kf8 {[%clk 0:00:03]} 42. Kg1 {[%clk 0:00:15]}  Rf6 {[%clk 0:00:03]} 43. Qh4 {[%clk 0:00:15]}  Nc5 {[%clk 0:00:04]} 44. Qh8+ {[%clk 0:00:15]}  Ke7 {[%clk 0:00:04]} 45. Qxg7+ {[%clk 0:00:15]}  Rf7 {[%clk 0:00:05]} 46. Bxf7 {[%clk 0:00:13]}  Qxf7 {[%clk 0:00:05]} 47. Qg5+ {[%clk 0:00:13]}  Qf6 {[%clk 0:00:06]} 48. Qxf6+ {[%clk 0:00:10]}  Kxf6 {[%clk 0:00:07]} 49. Kf2 {[%clk 0:00:09]}  Ke5 {[%clk 0:00:08]} 50. Ke3 {[%clk 0:00:10]}  b4 {[%clk 0:00:08]} 51. Rc4 {[%clk 0:00:10]}  b3 {[%clk 0:00:08]} 52. Rb4 {[%clk 0:00:11]}  b2 {[%clk 0:00:07]} 53. Rxb2 {[%clk 0:00:11]}  Nxe4 {[%clk 0:00:08]} 54. Rc2 {[%clk 0:00:09]}  Nf6 {[%clk 0:00:08]} 55. Rc6 {[%clk 0:00:08]}  Nxd5+ {[%clk 0:00:08]} 56. Kf3 {[%clk 0:00:08]}  Nb4 {[%clk 0:00:08]} 57. Rxc7 {[%clk 0:00:09]}  d5 {[%clk 0:00:08]} 58. g4 {[%clk 0:00:09]}  d4 {[%clk 0:00:08]} 59. g5 {[%clk 0:00:10]}  Kf5 {[%clk 0:00:09]} 60. Rc5+ {[%clk 0:00:09]}  Kg6 {[%clk 0:00:10]} 61. Ke4 {[%clk 0:00:08]}  d3 {[%clk 0:00:10]} 62. Ke3 {[%clk 0:00:07]}  Kh5 {[%clk 0:00:07]} 63. Kd2 {[%clk 0:00:08]}  Kg6 {[%clk 0:00:07]} 64. Rc4 {[%clk 0:00:08]}  Nd5 {[%clk 0:00:07]} 65. Kxd3 {[%clk 0:00:09]}  Ne7 {[%clk 0:00:07]} 66. Rc5 {[%clk 0:00:08]}  Nf5 {[%clk 0:00:07]} 67. Ke4 {[%clk 0:00:08]}  Ne7 {[%clk 0:00:05]} 68. Rc7 {[%clk 0:00:07]}  Nf5 {[%clk 0:00:01]} 69. Ra7 {[%clk 0:00:06]}  Kxg5 {[%clk 0:00:01]} 70. Rxa6 {[%clk 0:00:06]}  Kg4 {[%clk 0:00:02]} 71. Rf6 {[%clk 0:00:05]}  Ng3+ {[%clk 0:00:03]} 72. hxg3 {[%clk 0:00:05]}  Kg5 {[%clk 0:00:03]} 73. Rf8 {[%clk 0:00:05]}  Kg4 {[%clk 0:00:04]} 74. Rh8 {[%clk 0:00:06]}  Kxg3 {[%clk 0:00:05]} 75. Rxh3+ {[%clk 0:00:06]}  Kxh3 {[%clk 0:00:06]} 76. a6 {[%clk 0:00:07]}  Kg4 {[%clk 0:00:07]} 77. a7 {[%clk 0:00:08]}  Kg5 {[%clk 0:00:07]} 78. a8=Q {[%clk 0:00:09]}  Kg6 {[%clk 0:00:08]} 79. Qd5 {[%clk 0:00:09]} 1-0


[Site "https://www.chess.com"]

[Event "Titled Tuesday Blitz July 27 2021"]
[White "Gonzalez, Francisco Silva"]
[Black "Arkell, Keith C"]
[WhiteFideId "1512285"]
[BlackFideId "400270"]
[WhiteElo "2159"]
[BlackElo "2398"]
[Result "1-0"]
[Round "10"]
[TimeControl "180+1"]
[Date "2021.07.27"]
[WhiteClock "0:00:56"]
[BlackClock "0:00:13"]

1. d4 {[%clk 0:03:00]}  e6 {[%clk 0:02:59]} 2. c4 {[%clk 0:03:00]}  Bb4+ {[%clk 0:02:59]} 3. Nc3 {[%clk 0:02:59]}  c5 {[%clk 0:02:58]} 4. a3 {[%clk 0:02:58]}  Bxc3+ {[%clk 0:02:58]} 5. bxc3 {[%clk 0:02:58]}  f5 {[%clk 0:02:59]} 6. e3 {[%clk 0:02:57]}  Nf6 {[%clk 0:02:59]} 7. Bd3 {[%clk 0:02:58]}  d6 {[%clk 0:02:59]} 8. Qc2 {[%clk 0:02:56]}  O-O {[%clk 0:02:58]} 9. Ne2 {[%clk 0:02:56]}  g6 {[%clk 0:02:57]} 10. e4 {[%clk 0:02:53]}  fxe4 {[%clk 0:02:50]} 11. Bxe4 {[%clk 0:02:54]}  Nxe4 {[%clk 0:02:40]} 12. Qxe4 {[%clk 0:02:53]}  Nc6 {[%clk 0:02:37]} 13. Bh6 {[%clk 0:02:51]}  Rf7 {[%clk 0:02:32]} 14. O-O {[%clk 0:02:50]}  d5 {[%clk 0:02:11]} 15. cxd5 {[%clk 0:02:46]}  exd5 {[%clk 0:02:10]} 16. Qe3 {[%clk 0:02:43]}  c4 {[%clk 0:02:03]} 17. Ng3 {[%clk 0:02:40]}  Bf5 {[%clk 0:01:58]} 18. Rfe1 {[%clk 0:02:38]}  Qd7 {[%clk 0:01:57]} 19. Qg5 {[%clk 0:02:27]}  Re8 {[%clk 0:01:53]} 20. h4 {[%clk 0:02:23]}  Rxe1+ {[%clk 0:01:43]} 21. Rxe1 {[%clk 0:02:22]}  Re7 {[%clk 0:01:43]} 22. Rxe7 {[%clk 0:02:18]}  Qxe7 {[%clk 0:01:43]} 23. Qf4 {[%clk 0:02:08]}  Qd7 {[%clk 0:01:27]} 24. h5 {[%clk 0:02:06]}  a6 {[%clk 0:00:37]} 25. a4 {[%clk 0:02:03]}  b5 {[%clk 0:00:36]} 26. axb5 {[%clk 0:02:03]}  axb5 {[%clk 0:00:37]} 27. Nxf5 {[%clk 0:01:48]}  gxf5 {[%clk 0:00:23]} 28. Qg5+ {[%clk 0:01:43]}  Kf7 {[%clk 0:00:23]} 29. Qg7+ {[%clk 0:01:39]}  Ke6 {[%clk 0:00:23]} 30. Qg8+ {[%clk 0:01:36]}  Qf7 {[%clk 0:00:20]} 31. Qc8+ {[%clk 0:01:36]}  Qd7 {[%clk 0:00:20]} 32. Qf8 {[%clk 0:01:25]}  Qf7 {[%clk 0:00:19]} 33. Qc5 {[%clk 0:01:23]}  Qd7 {[%clk 0:00:18]} 34. Bf4 {[%clk 0:01:20]}  Ne7 {[%clk 0:00:17]} 35. Bg5 {[%clk 0:01:16]}  Nc8 {[%clk 0:00:16]} 36. f4 {[%clk 0:01:13]}  Nd6 {[%clk 0:00:16]} 37. Qb6 {[%clk 0:01:09]}  Kf7 {[%clk 0:00:15]} 38. Qb8 {[%clk 0:01:07]}  Ne4 {[%clk 0:00:14]} 39. Qh8 {[%clk 0:01:07]}  Ke6 {[%clk 0:00:13]} 40. Qe5+ {[%clk 0:01:07]}  Kf7 {[%clk 0:00:13]} 41. Kh2 {[%clk 0:01:00]}  Nxc3 {[%clk 0:00:13]} 42. Qf6+ {[%clk 0:00:58]}  Kg8 {[%clk 0:00:13]} 43. Bh6 {[%clk 0:00:56]} 1-0


[Site "https://www.chess.com"]

[Event "Titled Tuesday Blitz July 27 2021"]
[White "Hasangatin, Ramil"]
[Black "Luo, Terry"]
[WhiteFideId "4122160"]
[BlackFideId "30931045"]
[WhiteElo "2375"]
[BlackElo "2024"]
[Result "1-0"]
[Round "10"]
[TimeControl "180+1"]
[Date "2021.07.27"]
[WhiteClock "0:01:40"]
[BlackClock "0:01:49"]

1. e4 {[%clk 0:03:00]}  c5 {[%clk 0:02:59]} 2. Nf3 {[%clk 0:03:00]}  d6 {[%clk 0:02:59]} 3. d4 {[%clk 0:02:59]}  cxd4 {[%clk 0:03:00]} 4. Qxd4 {[%clk 0:03:00]}  Nf6 {[%clk 0:03:01]} 5. e5 {[%clk 0:03:00]}  dxe5 {[%clk 0:02:59]} 6. Qxd8+ {[%clk 0:03:01]}  Kxd8 {[%clk 0:02:59]} 7. Nxe5 {[%clk 0:03:01]}  Ke8 {[%clk 0:02:59]} 8. Be2 {[%clk 0:03:02]}  e6 {[%clk 0:02:59]} 9. Bf3 {[%clk 0:03:02]}  Bd6 {[%clk 0:02:58]} 10. Nc4 {[%clk 0:03:00]}  Bc7 {[%clk 0:02:57]} 11. Nc3 {[%clk 0:03:01]}  Nc6 {[%clk 0:02:57]} 12. Nb5 {[%clk 0:03:00]}  Bb8 {[%clk 0:02:55]} 13. Nbd6+ {[%clk 0:02:49]}  Ke7 {[%clk 0:02:55]} 14. Nxc8+ {[%clk 0:02:44]}  Rxc8 {[%clk 0:02:55]} 15. Be3 {[%clk 0:02:45]}  Nd5 {[%clk 0:02:47]} 16. Bc5+ {[%clk 0:02:42]}  Ke8 {[%clk 0:02:42]} 17. O-O-O {[%clk 0:02:37]}  Ne5 {[%clk 0:02:42]} 18. Bxd5 {[%clk 0:02:28]}  exd5 {[%clk 0:02:35]} 19. Nd6+ {[%clk 0:02:15]}  Bxd6 {[%clk 0:02:35]} 20. Bxd6 {[%clk 0:02:16]}  Nc4 {[%clk 0:02:32]} 21. Rxd5 {[%clk 0:02:12]}  Nxd6 {[%clk 0:02:26]} 22. Rxd6 {[%clk 0:02:13]}  Rd8 {[%clk 0:02:25]} 23. Re1+ {[%clk 0:02:11]}  Kf8 {[%clk 0:02:25]} 24. Rxd8+ {[%clk 0:02:05]}  Rxd8 {[%clk 0:02:25]} 25. Rd1 {[%clk 0:02:05]}  Re8 {[%clk 0:02:26]} 26. Rd7 {[%clk 0:02:05]}  Re2 {[%clk 0:02:25]} 27. Rxb7 {[%clk 0:02:04]}  Rxf2 {[%clk 0:02:25]} 28. Rxa7 {[%clk 0:02:04]}  Rxg2 {[%clk 0:02:26]} 29. b4 {[%clk 0:02:04]}  Rxh2 {[%clk 0:02:04]} 30. b5 {[%clk 0:02:04]}  Rh6 {[%clk 0:02:04]} 31. a4 {[%clk 0:01:51]}  g5 {[%clk 0:02:04]} 32. a5 {[%clk 0:01:40]}  g4 {[%clk 0:02:04]} 33. b6 {[%clk 0:01:40]}  Rh1+ {[%clk 0:01:48]} 34. Kb2 {[%clk 0:01:40]}  g3 {[%clk 0:01:48]} 35. b7 {[%clk 0:01:39]}  g2 {[%clk 0:01:48]} 36. b8=Q+ {[%clk 0:01:40]}  Kg7 {[%clk 0:01:49]} 37. Qg3+ {[%clk 0:01:40]} 1-0


[Site "https://www.chess.com"]

[Event "Titled Tuesday Blitz July 27 2021"]
[White "Hoffmann, Asa"]
[Black "Derraugh, Geordie"]
[WhiteFideId "2001470"]
[BlackFideId "2603950"]
[WhiteElo "2117"]
[BlackElo "2132"]
[Result "1-0"]
[Round "10"]
[TimeControl "180+1"]
[Date "2021.07.27"]
[WhiteClock "0:00:35"]
[BlackClock "0:00:13"]

1. d4 {[%clk 0:02:57]}  Nf6 {[%clk 0:02:59]} 2. Bg5 {[%clk 0:02:54]}  d5 {[%clk 0:02:58]} 3. Nd2 {[%clk 0:02:53]}  c5 {[%clk 0:02:56]} 4. e3 {[%clk 0:02:51]}  Nc6 {[%clk 0:02:54]} 5. c3 {[%clk 0:02:51]}  h6 {[%clk 0:02:50]} 6. Bh4 {[%clk 0:02:50]}  g5 {[%clk 0:02:46]} 7. Bg3 {[%clk 0:02:50]}  Qb6 {[%clk 0:02:43]} 8. b3 {[%clk 0:02:47]}  Bg7 {[%clk 0:02:43]} 9. Bd3 {[%clk 0:02:47]}  O-O {[%clk 0:02:41]} 10. h4 {[%clk 0:02:47]}  g4 {[%clk 0:02:40]} 11. Ne2 {[%clk 0:02:47]}  cxd4 {[%clk 0:02:37]} 12. exd4 {[%clk 0:02:45]}  Re8 {[%clk 0:02:34]} 13. O-O {[%clk 0:02:18]}  e5 {[%clk 0:02:30]} 14. dxe5 {[%clk 0:02:07]}  Nxe5 {[%clk 0:02:31]} 15. Bc2 {[%clk 0:02:07]}  Nh5 {[%clk 0:02:24]} 16. Kh2 {[%clk 0:01:50]}  f5 {[%clk 0:02:15]} 17. Nf4 {[%clk 0:01:47]}  Nxf4 {[%clk 0:02:02]} 18. Bxf4 {[%clk 0:01:46]}  Ng6 {[%clk 0:02:02]} 19. Be3 {[%clk 0:01:37]}  Qc7+ {[%clk 0:02:00]} 20. g3 {[%clk 0:01:35]}  Bxc3 {[%clk 0:01:57]} 21. Rc1 {[%clk 0:01:34]}  Nxh4 {[%clk 0:01:49]} 22. Bd3 {[%clk 0:01:27]}  Rxe3 {[%clk 0:01:19]} 23. fxe3 {[%clk 0:01:26]}  Qe5 {[%clk 0:01:18]} 24. Qe2 {[%clk 0:01:08]}  Bxd2 {[%clk 0:01:15]} 25. Qxd2 {[%clk 0:01:06]}  Nf3+ {[%clk 0:01:13]} 26. Rxf3 {[%clk 0:01:06]}  gxf3 {[%clk 0:01:14]} 27. Rf1 {[%clk 0:01:05]}  Be6 {[%clk 0:00:58]} 28. Rxf3 {[%clk 0:01:04]}  Rd8 {[%clk 0:00:57]} 29. Qf2 {[%clk 0:01:02]}  Rf8 {[%clk 0:00:53]} 30. Kg2 {[%clk 0:01:01]}  Rf6 {[%clk 0:00:51]} 31. g4 {[%clk 0:00:53]}  Rg6 {[%clk 0:00:50]} 32. Bxf5 {[%clk 0:00:52]}  Bxf5 {[%clk 0:00:41]} 33. Rxf5 {[%clk 0:00:52]}  Rxg4+ {[%clk 0:00:31]} 34. Kh3 {[%clk 0:00:52]}  Qg7 {[%clk 0:00:28]} 35. Rxd5 {[%clk 0:00:43]}  Re4 {[%clk 0:00:14]} 36. Rd8+ {[%clk 0:00:36]}  Kh7 {[%clk 0:00:14]} 37. Qf5+ {[%clk 0:00:35]}  Qg6 {[%clk 0:00:13]} 38. Rd7+ {[%clk 0:00:35]} 1-0


[Site "https://www.chess.com"]

[Event "Titled Tuesday Blitz July 27 2021"]
[White "Horak, Martin"]
[Black "Pelopidass"]
[WhiteFideId "367095"]
[WhiteElo "1997"]
[BlackElo "2578"]
[Result "1-0"]
[Round "10"]
[TimeControl "180+1"]
[Date "2021.07.27"]
[WhiteClock "0:00:06"]
[BlackClock "0:00:01"]

1. e4 {[%clk 0:03:00]}  e5 {[%clk 0:02:55]} 2. f4 {[%clk 0:02:57]}  Bc5 {[%clk 0:02:47]} 3. Nf3 {[%clk 0:02:56]}  d6 {[%clk 0:02:45]} 4. Nc3 {[%clk 0:02:57]}  Nf6 {[%clk 0:02:42]} 5. Bc4 {[%clk 0:02:57]}  c6 {[%clk 0:02:41]} 6. d3 {[%clk 0:02:50]}  b5 {[%clk 0:02:37]} 7. Bb3 {[%clk 0:02:49]}  a5 {[%clk 0:02:38]} 8. a4 {[%clk 0:02:43]}  b4 {[%clk 0:02:38]} 9. Nb1 {[%clk 0:02:26]}  Ng4 {[%clk 0:02:35]} 10. Qe2 {[%clk 0:02:22]}  Bf2+ {[%clk 0:02:19]} 11. Kf1 {[%clk 0:02:18]}  Ba7 {[%clk 0:01:53]} 12. h3 {[%clk 0:02:16]}  Nf2 {[%clk 0:01:45]} 13. Rh2 {[%clk 0:02:14]}  exf4 {[%clk 0:01:40]} 14. Bxf4 {[%clk 0:02:08]}  Qf6 {[%clk 0:01:39]} 15. Bc1 {[%clk 0:01:39]}  O-O {[%clk 0:01:27]} 16. g4 {[%clk 0:01:23]}  Nxg4 {[%clk 0:00:50]} 17. hxg4 {[%clk 0:01:22]}  Bxg4 {[%clk 0:00:51]} 18. Kg2 {[%clk 0:01:01]}  Nd7 {[%clk 0:00:50]} 19. Be3 {[%clk 0:00:49]}  Ne5 {[%clk 0:00:39]} 20. Nbd2 {[%clk 0:00:48]}  d5 {[%clk 0:00:20]} 21. Bxa7 {[%clk 0:00:36]}  Rxa7 {[%clk 0:00:17]} 22. Rf1 {[%clk 0:00:30]}  Re7 {[%clk 0:00:16]} 23. Kh1 {[%clk 0:00:29]}  Nxf3 {[%clk 0:00:15]} 24. Nxf3 {[%clk 0:00:27]}  dxe4 {[%clk 0:00:15]} 25. dxe4 {[%clk 0:00:26]}  Qxb2 {[%clk 0:00:14]} 26. Rg2 {[%clk 0:00:25]}  Bh5 {[%clk 0:00:13]} 27. Qe3 {[%clk 0:00:18]}  Rfe8 {[%clk 0:00:11]} 28. e5 {[%clk 0:00:15]}  Bg6 {[%clk 0:00:07]} 29. Rfg1 {[%clk 0:00:12]}  Qc3 {[%clk 0:00:05]} 30. Qxc3 {[%clk 0:00:12]}  bxc3 {[%clk 0:00:05]} 31. Nh4 {[%clk 0:00:10]}  Rxe5 {[%clk 0:00:04]} 32. Nxg6 {[%clk 0:00:10]}  hxg6 {[%clk 0:00:05]} 33. Rxg6 {[%clk 0:00:10]}  Rh5+ {[%clk 0:00:06]} 34. Kg2 {[%clk 0:00:08]}  Kf8 {[%clk 0:00:04]} 35. Rxc6 {[%clk 0:00:08]}  Re2+ {[%clk 0:00:03]} 36. Kf3 {[%clk 0:00:08]}  Rd2 {[%clk 0:00:03]} 37. Rc8+ {[%clk 0:00:07]}  Ke7 {[%clk 0:00:03]} 38. Rc7+ {[%clk 0:00:08]}  Ke8 {[%clk 0:00:01]} 39. Bxf7+ {[%clk 0:00:07]}  Kd8 {[%clk 0:00:01]} 40. Bxh5 {[%clk 0:00:06]} 1-0


[Site "https://www.chess.com"]

[Event "Titled Tuesday Blitz July 27 2021"]
[White "Kalashian, David"]
[Black "Araujo Sanchez, Josue"]
[WhiteFideId "13302418"]
[BlackFideId "6416896"]
[WhiteElo "2519"]
[BlackElo "2726"]
[Result "0-1"]
[Round "10"]
[TimeControl "180+1"]
[Date "2021.07.27"]
[WhiteClock "0:00:07"]
[BlackClock "0:00:53"]

1. e4 {[%clk 0:02:59]}  d5 {[%clk 0:02:55]} 2. exd5 {[%clk 0:02:59]}  Qxd5 {[%clk 0:02:56]} 3. Nc3 {[%clk 0:02:59]}  Qd6 {[%clk 0:02:57]} 4. d4 {[%clk 0:02:57]}  Nf6 {[%clk 0:02:57]} 5. Be2 {[%clk 0:02:51]}  Nc6 {[%clk 0:02:55]} 6. Be3 {[%clk 0:02:51]}  Bf5 {[%clk 0:02:55]} 7. Nf3 {[%clk 0:02:48]}  O-O-O {[%clk 0:02:55]} 8. O-O {[%clk 0:02:47]}  e6 {[%clk 0:02:56]} 9. Nb5 {[%clk 0:02:45]}  Qb4 {[%clk 0:02:53]} 10. c4 {[%clk 0:02:41]}  a6 {[%clk 0:02:50]} 11. Nc3 {[%clk 0:02:11]}  Qxb2 {[%clk 0:02:49]} 12. Rc1 {[%clk 0:02:02]}  Ne4 {[%clk 0:02:31]} 13. Nxe4 {[%clk 0:01:47]}  Bxe4 {[%clk 0:02:32]} 14. Ng5 {[%clk 0:01:47]}  Bg6 {[%clk 0:02:29]} 15. d5 {[%clk 0:01:47]}  Be7 {[%clk 0:02:23]} 16. Bd3 {[%clk 0:01:35]}  Bxg5 {[%clk 0:01:52]} 17. Bxg5 {[%clk 0:01:33]}  f6 {[%clk 0:01:52]} 18. Bf4 {[%clk 0:01:05]}  Ne5 {[%clk 0:01:45]} 19. Bxg6 {[%clk 0:01:01]}  Nxg6 {[%clk 0:01:42]} 20. Bg3 {[%clk 0:00:57]}  Rhe8 {[%clk 0:01:39]} 21. Rb1 {[%clk 0:00:55]}  Qa3 {[%clk 0:01:33]} 22. Qh5 {[%clk 0:00:45]}  Nf8 {[%clk 0:01:29]} 23. Rb3 {[%clk 0:00:19]}  Qc5 {[%clk 0:01:28]} 24. Rfb1 {[%clk 0:00:19]}  b6 {[%clk 0:01:28]} 25. Bxc7 {[%clk 0:00:14]}  Kxc7 {[%clk 0:01:13]} 26. Rxb6 {[%clk 0:00:14]}  Qxb6 {[%clk 0:01:12]} 27. Rxb6 {[%clk 0:00:14]}  Kxb6 {[%clk 0:01:11]} 28. h3 {[%clk 0:00:10]}  exd5 {[%clk 0:01:11]} 29. cxd5 {[%clk 0:00:11]}  Re7 {[%clk 0:01:09]} 30. Qf3 {[%clk 0:00:10]}  Red7 {[%clk 0:01:09]} 31. a4 {[%clk 0:00:07]}  Kc5 {[%clk 0:01:09]} 32. Qd3 {[%clk 0:00:06]}  Ng6 {[%clk 0:01:10]} 33. Qxa6 {[%clk 0:00:06]}  Kxd5 {[%clk 0:01:10]} 34. Qb5+ {[%clk 0:00:06]}  Ke6 {[%clk 0:01:11]} 35. a5 {[%clk 0:00:06]}  Ne5 {[%clk 0:01:11]} 36. a6 {[%clk 0:00:06]}  Rc7 {[%clk 0:01:04]} 37. Qb6+ {[%clk 0:00:04]}  Kd7 {[%clk 0:01:03]} 38. a7 {[%clk 0:00:04]}  Nc6 {[%clk 0:01:00]} 39. Qb5 {[%clk 0:00:02]}  Rxa7 {[%clk 0:01:00]} 40. Qd5+ {[%clk 0:00:02]}  Kc7 {[%clk 0:01:00]} 41. Qf5 {[%clk 0:00:03]}  h6 {[%clk 0:01:00]} 42. Qf4+ {[%clk 0:00:03]}  Ne5 {[%clk 0:00:58]} 43. Kh2 {[%clk 0:00:04]}  Rd7 {[%clk 0:00:57]} 44. Qc1+ {[%clk 0:00:04]}  Kd8 {[%clk 0:00:57]} 45. Qf4 {[%clk 0:00:05]}  Rac7 {[%clk 0:00:57]} 46. Qf5 {[%clk 0:00:06]}  Ke8 {[%clk 0:00:58]} 47. Qh7 {[%clk 0:00:06]}  Kf8 {[%clk 0:00:58]} 48. h4 {[%clk 0:00:06]}  Rc3 {[%clk 0:00:56]} 49. f3 {[%clk 0:00:07]}  Rd2 {[%clk 0:00:54]} 50. Kg3 {[%clk 0:00:07]}  Rcc2 {[%clk 0:00:55]} 51. Kf4 {[%clk 0:00:07]}  Rxg2 {[%clk 0:00:54]} 52. Qe4 {[%clk 0:00:07]}  Rc4 {[%clk 0:00:53]} 0-1


[Site "https://www.chess.com"]

[Event "Titled Tuesday Blitz July 27 2021"]
[White "Kretov, Evgenij"]
[Black "Ahmadzada, Ahmad"]
[WhiteFideId "4167821"]
[BlackFideId "13413007"]
[WhiteElo "2400"]
[BlackElo "2226"]
[Result "0-1"]
[Round "10"]
[TimeControl "180+1"]
[Date "2021.07.27"]
[WhiteClock "0:00:38"]
[BlackClock "0:00:05"]

1. d4 {[%clk 0:03:00]}  Nf6 {[%clk 0:02:59]} 2. c4 {[%clk 0:03:01]}  Nc6 {[%clk 0:03:00]} 3. Nf3 {[%clk 0:03:00]}  e6 {[%clk 0:03:00]} 4. Nc3 {[%clk 0:03:00]}  Bb4 {[%clk 0:02:59]} 5. Bg5 {[%clk 0:03:00]}  h6 {[%clk 0:02:58]} 6. Bh4 {[%clk 0:03:00]}  g5 {[%clk 0:02:58]} 7. Bg3 {[%clk 0:03:00]}  Ne4 {[%clk 0:02:57]} 8. Qc2 {[%clk 0:03:00]}  Nxg3 {[%clk 0:02:42]} 9. hxg3 {[%clk 0:02:59]}  Qf6 {[%clk 0:02:41]} 10. e3 {[%clk 0:02:58]}  d6 {[%clk 0:02:40]} 11. Bd3 {[%clk 0:02:53]}  Bd7 {[%clk 0:02:37]} 12. O-O {[%clk 0:02:50]}  Bxc3 {[%clk 0:02:37]} 13. Qxc3 {[%clk 0:02:50]}  h5 {[%clk 0:02:36]} 14. Be4 {[%clk 0:02:23]}  h4 {[%clk 0:01:59]} 15. g4 {[%clk 0:02:22]}  Ne7 {[%clk 0:01:49]} 16. Bxb7 {[%clk 0:02:10]}  Rb8 {[%clk 0:01:48]} 17. Be4 {[%clk 0:02:10]}  h3 {[%clk 0:01:46]} 18. g3 {[%clk 0:02:04]}  d5 {[%clk 0:01:44]} 19. cxd5 {[%clk 0:02:04]}  exd5 {[%clk 0:01:43]} 20. Qxc7 {[%clk 0:02:03]}  Rc8 {[%clk 0:01:25]} 21. Qxa7 {[%clk 0:02:00]}  dxe4 {[%clk 0:01:18]} 22. Ne5 {[%clk 0:02:00]}  h2+ {[%clk 0:01:13]} 23. Kh1 {[%clk 0:01:57]}  Bxg4 {[%clk 0:01:11]} 24. f4 {[%clk 0:01:55]}  Be6 {[%clk 0:00:23]} 25. fxg5 {[%clk 0:01:32]}  Qxg5 {[%clk 0:00:22]} 26. Rxf7 {[%clk 0:01:16]}  Bxf7 {[%clk 0:00:16]} 27. Qd7+ {[%clk 0:01:16]}  Kf8 {[%clk 0:00:16]} 28. Rf1 {[%clk 0:01:15]}  Rh7 {[%clk 0:00:13]} 29. Qe6 {[%clk 0:01:09]}  Rc1 {[%clk 0:00:04]} 30. Nd7+ {[%clk 0:00:53]}  Kg8 {[%clk 0:00:04]} 31. Nf6+ {[%clk 0:00:50]}  Kh8 {[%clk 0:00:03]} 32. Qa6 {[%clk 0:00:42]}  Rxf1+ {[%clk 0:00:02]} 33. Qxf1 {[%clk 0:00:42]}  Qf5 {[%clk 0:00:01]} 34. Qxf5 {[%clk 0:00:38]}  Nxf5 {[%clk 0:00:02]} 35. Nxh7 {[%clk 0:00:39]}  Kxh7 {[%clk 0:00:03]} 36. a4 {[%clk 0:00:37]}  Nxe3 {[%clk 0:00:03]} 37. Kxh2 {[%clk 0:00:38]}  Ng4+ {[%clk 0:00:03]} 38. Kg2 {[%clk 0:00:37]}  e3 {[%clk 0:00:04]} 39. Kf3 {[%clk 0:00:37]}  Bd5+ {[%clk 0:00:05]} 40. Ke2 {[%clk 0:00:37]}  Bc4+ {[%clk 0:00:05]} 41. Ke1 {[%clk 0:00:38]}  Nh2 {[%clk 0:00:05]} 42. a5 {[%clk 0:00:38]}  Nf3+ {[%clk 0:00:05]} 0-1


[Site "https://www.chess.com"]